bitfinex/quotes_BTCUSD_20251031
["timestamp","ask_amount","ask_price","bid_price","bid_amount"]
[1761876938674,0.01950265,109300.0,109290.0,0.21602935]
[1761876938998,2.0,109300.0,109290.0,0.23531935]
[1761876939205,0.01950265,109300.0,109290.0,0.23531935]
[1761876939405,0.64143582,109310.0,109300.0,0.18298261]
[1761876939622,2.64991351,109310.0,109300.0,0.20327261]
[1761876939945,2.5784045,109310.0,109300.0,0.02029]
[1761876940243,3.26931668,109310.0,109300.0,0.02029]
[1761876940494,3.06389252,109310.0,109300.0,0.20327261]
[1761876940703,0.02798034,109310.0,109300.0,0.23530261]
[1761876940909,0.02221137,109320.0,109310.0,0.18296587]
[1761876941134,0.0111882,109320.0,109310.0,0.25048587]
[1761876941343,0.03650048,109320.0,109310.0,0.19816587]
[1761876941527,0.0111882,109320.0,109310.0,0.25048587]
[1761876942186,0.0111882,109320.0,109310.0,0.25148587]
[1761876942384,0.0111882,109320.0,109310.0,0.34130488]
[1761876942385,0.00270872,109320.0,109310.0,0.34130488]
[1761876943182,0.00270872,109320.0,109310.0,0.34230488]
[1761876943377,0.00270872,109320.0,109310.0,0.39483363]
[1761876943936,0.00270872,109320.0,109310.0,0.34230488]
[1761876944362,0.37781462,109340.0,109310.0,0.34230488]
[1761876944562,2.56968144,109340.0,109330.0,0.2168624]
[1761876944977,2.55936494,109340.0,109330.0,0.2469224]
[1761876945179,2.0,109330.0,109320.0,0.30281397]
[1761876945515,0.04153268,109330.0,109320.0,0.20221914]
[1761876945703,0.00869003,109330.0,109320.0,0.23227914]
[1761876945905,0.0002234,109330.0,109320.0,0.23227914]
[1761876946045,0.1831558,109330.0,109320.0,0.23227914]
[1761876946244,0.19162243,109330.0,109320.0,0.23227914]
[1761876947266,0.19262243,109330.0,109320.0,0.23227914]
[1761876947487,0.00969003,109330.0,109320.0,0.23227914]
[1761876948152,0.19262243,109330.0,109320.0,0.23227914]
[1761876949713,0.00969003,109330.0,109320.0,0.23227914]
[1761876950121,0.0012234,109330.0,109320.0,0.23227914]
[1761876950655,0.0002234,109330.0,109320.0,0.23227914]
[1761876950862,0.0002234,109330.0,109320.0,0.32209815]
[1761876951333,0.0002234,109330.0,109320.0,0.32309815]
[1761876951722,0.0002234,109330.0,109320.0,0.32209815]
[1761876952175,0.0002234,109330.0,109320.0,0.32509815]
[1761876953029,0.0002234,109330.0,109320.0,0.32609815]
[1761876960228,0.59952027,109330.0,109320.0,0.02327]
[1761876960443,0.58618027,109330.0,109320.0,0.20621914]
[1761876960673,0.59952027,109330.0,109320.0,0.02327]
[1761876960915,0.36769479,109330.0,109320.0,0.02327]
[1761876961128,0.36769479,109330.0,109320.0,0.001]
[1761876961129,3.23449416,109330.0,109320.0,0.001]
[1761876961336,3.40737742,109330.0,109320.0,0.001]
[1761876961552,3.37976138,109330.0,109320.0,0.001]
[1761876961973,2.18298261,109300.0,109290.0,0.00914996]
[1761876962215,2.0,109290.0,109280.0,0.23775669]
[1761876962421,2.0,109290.0,109280.0,0.3275757]
[1761876962553,2.0,109290.0,109280.0,0.3468457]
[1761876962763,0.34,109310.0,109300.0,0.18298261]
[1761876962976,0.52296587,109310.0,109300.0,0.20225261]
[1761876963175,0.93001034,109310.0,109300.0,0.0194154]
[1761876963379,0.5511524,109310.0,109300.0,0.0194154]
[1761876963797,0.5521524,109310.0,109300.0,0.0194154]
[1761876964009,0.53264587,109310.0,109300.0,0.22069627]
[1761876964207,0.341,109310.0,109300.0,0.23245801]
[1761876964406,0.53264587,109310.0,109300.0,0.20239801]
[1761876965476,0.53264587,109310.0,109300.0,0.0001454]
[1761876965707,0.5521555,109310.0,109300.0,0.0001454]
[1761876965915,3.29364384,109310.0,109300.0,0.0001454]
[1761876966324,3.32357973,109310.0,109300.0,0.0001454]
[1761876967574,3.31489973,109310.0,109300.0,0.0001454]
[1761876967782,3.42186578,109310.0,109300.0,0.0001454]
[1761876967980,3.44101478,109310.0,109300.0,0.0001454]
[1761876969332,3.42186218,109310.0,109300.0,0.0001454]
[1761876970027,3.44947822,109310.0,109300.0,0.0001454]
[1761876970341,3.44101478,109310.0,109300.0,0.0001454]
[1761876971447,3.44001478,109310.0,109300.0,0.0001454]
[1761876971847,3.44401478,109310.0,109300.0,0.0001454]
[1761876972052,3.45001478,109310.0,109300.0,0.0001454]
[1761876972554,3.47752205,109310.0,109300.0,0.0001454]
[1761876976073,3.44990601,109310.0,109300.0,0.0001454]
[1761876976920,2.68716178,109310.0,109300.0,0.0001454]
[1761876977122,2.6956081,109310.0,109300.0,0.0001454]
[1761876977344,2.65097451,109310.0,109300.0,0.0001454]
[1761876977559,2.64697451,109310.0,109300.0,0.0001454]
[1761876977981,2.64897451,109310.0,109300.0,0.0001454]
[1761876978208,2.73679352,109310.0,109300.0,0.0001454]
[1761876978382,2.64697451,109310.0,109300.0,0.0001454]
[1761876978610,2.64197451,109310.0,109300.0,0.0185254]
[1761876978830,2.30597451,109310.0,109300.0,0.0185254]
[1761876978953,2.19664587,109310.0,109300.0,0.0185254]
[1761876979155,0.34968,109310.0,109300.0,0.21980627]
[1761876979365,0.53264587,109310.0,109300.0,0.20150801]
[1761876979568,0.53464587,109310.0,109300.0,0.20150801]
[1761876979991,0.53264587,109310.0,109300.0,0.20150801]
[1761876980187,0.53264587,109310.0,109300.0,0.0185254]
[1761876980548,0.52296587,109310.0,109300.0,0.22983801]
[1761876980978,0.52296587,109310.0,109300.0,0.0468554]
[1761876981476,0.52296587,109310.0,109300.0,0.0185254]
[1761876981959,0.32103962,109310.0,109300.0,0.20150801]
[1761876982198,0.18296587,109310.0,109300.0,0.22983801]
[1761876982488,0.18296587,109310.0,109300.0,0.23066977]
[1761876982693,2.0,109310.0,109300.0,0.23066977]
[1761876982954,0.19209867,109320.0,109310.0,0.18296587]
[1761876983213,2.0,109320.0,109310.0,0.24413587]
[1761876985397,0.1829324,109330.0,109310.0,0.24413587]
[1761876985598,0.1829324,109330.0,109320.0,0.22965914]
[1761876986394,0.019497,109340.0,109330.0,0.1829324]
[1761876986609,0.19204549,109350.0,109330.0,0.2441024]
[1761876986789,2.0,109340.0,109330.0,0.2257224]
[1761876987187,2.0,109340.0,109330.0,0.2441024]
[1761876988451,0.001,109340.0,109330.0,0.2441024]
[1761876989448,0.003,109340.0,109330.0,0.2441024]
[1761876989812,0.003,109340.0,109330.0,0.37049195]
[1761876990156,0.002,109340.0,109330.0,0.33392141]
[1761876990406,0.002,109340.0,109330.0,0.33592141]
[1761876991159,0.91620915,109370.0,109350.0,0.18289894]
[1761876991354,2.0,109360.0,109350.0,0.20127894]
[1761876991536,2.0,109360.0,109350.0,0.24406894]
[1761876991920,0.18288222,109360.0,109350.0,0.24406894]
[1761876992127,0.64084945,109370.0,109350.0,0.24406894]
[1761876992370,2.0,109360.0,109350.0,0.24406894]
[1761876992744,2.0,109360.0,109350.0,0.22568894]
[1761876992939,2.0,109360.0,109350.0,0.24406894]
[1761876993983,0.001,109360.0,109350.0,0.24406894]
[1761876996608,0.63633484,109360.0,109350.0,0.24406894]
[1761876996841,0.18311308,109360.0,109350.0,0.24406894]
[1761876997021,0.00023086,109360.0,109350.0,0.24406894]
[1761876997220,0.00090082,109360.0,109350.0,0.24406894]
[1761877000080,0.00090082,109360.0,109350.0,0.26018631]
[1761877000314,0.00090082,109360.0,109350.0,0.24406894]
[1761877000976,0.00066996,109360.0,109350.0,0.24406894]
[1761877001182,0.00066996,109360.0,109350.0,0.24706894]
[1761877007460,0.39880866,109360.0,109350.0,0.24706894]
[1761877011486,0.40729146,109360.0,109350.0,0.24706894]
[1761877011935,0.00915276,109360.0,109350.0,0.24706894]
[1761877012162,0.00066996,109360.0,109350.0,0.82019916]
[1761877015504,0.00066996,109360.0,109350.0,0.81719916]
[1761877015709,0.00066996,109360.0,109350.0,0.82019916]
[1761877015919,0.00066996,109360.0,109350.0,1.59952014]
[1761877015920,1e-08,109360.0,109350.0,1.59952014]
[1761877016305,1e-08,109360.0,109350.0,1.60952013]
[1761877017491,1e-08,109360.0,109350.0,1.26952013]
[1761877018946,1e-08,109360.0,109350.0,1.60952013]
[1761877021167,1e-08,109360.0,109350.0,2.00765883]
[1761877021343,1e-08,109360.0,109350.0,2.01865882]
[1761877021580,1e-08,109360.0,109350.0,2.02232197]
[1761877021785,1e-08,109370.0,109360.0,0.2489322]
[1761877021992,1e-08,109370.0,109360.0,1.62298632]
[1761877022412,1e-08,109370.0,109360.0,1.6591686]
[1761877023228,1e-08,109370.0,109360.0,1.6641686]
[1761877024050,1e-08,109370.0,109360.0,1.6701686]
[1761877025343,1e-08,109370.0,109360.0,2.0111686]
[1761877026264,1e-08,109370.0,109360.0,1.60202991]
[1761877026484,1e-08,109370.0,109360.0,1.6120299]
[1761877026710,1e-08,109370.0,109360.0,1.60202991]
[1761877027439,0.00022328,109370.0,109360.0,1.60202991]
[1761877027654,0.00022328,109370.0,109360.0,1.55584764]
[1761877028094,0.00022328,109370.0,109360.0,1.59202992]
[1761877028554,0.00022328,109370.0,109360.0,1.58602992]
[1761877028992,0.00022328,109370.0,109360.0,1.58102992]
[1761877029444,0.00022328,109370.0,109360.0,1.58302992]
[1761877029893,0.00022328,109370.0,109360.0,1.58602992]
[1761877030116,0.00022328,109370.0,109360.0,1.99416861]
[1761877030352,0.00022328,109370.0,109360.0,2.0041686]
[1761877030589,1e-08,109370.0,109360.0,2.0041686]
[1761877031338,1e-08,109370.0,109360.0,2.0011686]
[1761877031778,1e-08,109370.0,109360.0,2.1508686]
[1761877032002,1e-08,109370.0,109360.0,2.1548686]
[1761877032895,1e-08,109370.0,109360.0,0.9604525]
[1761877033101,1e-08,109370.0,109360.0,2.1548686]
[1761877034660,1e-08,109380.0,109370.0,0.62391776]
[1761877034898,1e-08,109380.0,109370.0,1.56759581]
[1761877036207,1e-08,109380.0,109370.0,1.57159581]
[1761877037067,1e-08,109380.0,109370.0,1.57359581]
[1761877039636,1e-08,109380.0,109370.0,1.97273451]
[1761877040286,0.00848315,109410.0,109400.0,0.18281535]
[1761877040507,0.00848315,109410.0,109400.0,1.13950331]
[1761877040508,0.00862853,109410.0,109400.0,1.13950331]
[1761877040726,0.00862853,109410.0,109400.0,1.16698331]
[1761877041185,0.42664637,109440.0,109420.0,0.18276539]
[1761877041405,2.0,109430.0,109420.0,0.19577539]
[1761877041625,0.01956649,109430.0,109420.0,0.22325539]
[1761877041848,2.76664637,109440.0,109430.0,0.18276523]
[1761877042065,2.76754637,109440.0,109430.0,0.21317523]
[1761877042776,2.57565579,109440.0,109430.0,0.21317523]
[1761877042997,2.75840432,109440.0,109430.0,0.20817523]
[1761877043239,2.75840432,109440.0,109430.0,0.03041]
[1761877043663,2.76140432,109440.0,109430.0,0.02741]
[1761877044159,1.16544302,109440.0,109420.0,0.18278194]
[1761877044350,2.0,109430.0,109420.0,0.24903499]
[1761877044500,0.41770519,109430.0,109420.0,0.21026194]
[1761877044714,0.60437042,109430.0,109420.0,0.0174]
[1761877044908,2.0,109420.0,109410.0,0.20494857]
[1761877045135,0.3981387,109420.0,109410.0,0.20494857]
[1761877045298,0.58090393,109430.0,109410.0,0.22234857]
[1761877045514,2.0,109420.0,109410.0,0.20494857]
[1761877045732,0.0195884,109420.0,109410.0,0.23242857]
[1761877045947,2.3595884,109430.0,109420.0,0.18278194]
[1761877046163,0.54235363,109430.0,109420.0,0.22766194]
[1761877046374,0.94049233,109430.0,109420.0,0.22766194]
[1761877046576,0.7577271,109430.0,109420.0,0.22766194]
[1761877046778,0.36070405,109430.0,109420.0,0.22766194]
[1761877047642,0.02070405,109430.0,109420.0,1.20357736]
[1761877047856,0.00111565,109430.0,109420.0,0.40729996]
[1761877048070,0.00111565,109430.0,109420.0,0.80543866]
[1761877048281,0.00111565,109430.0,109420.0,0.71561965]
[1761877051124,2.59484095,109450.0,109440.0,0.0174]
[1761877051254,2.59108619,109450.0,109440.0,0.0174]
[1761877051604,2.59108619,109450.0,109440.0,0.04488]
[1761877051763,0.18274853,109440.0,109430.0,0.01301]
[1761877052104,0.18274853,109440.0,109430.0,0.22325523]
[1761877052303,0.20546548,109450.0,109440.0,0.18274853]
[1761877052481,2.58401578,109450.0,109440.0,0.22762853]
[1761877052683,2.20546548,109450.0,109440.0,0.22762853]
[1761877052885,2.02473364,109450.0,109440.0,0.22762853]
[1761877053086,0.02473364,109450.0,109440.0,0.22762853]
[1761877053448,0.0136449,109450.0,109440.0,0.22762853]
[1761877053567,0.0116449,109450.0,109440.0,0.22762853]
[1761877053783,0.19137674,109450.0,109440.0,0.22762853]
[1761877053980,0.19237674,109450.0,109440.0,0.22562853]
[1761877054844,0.19437674,109450.0,109440.0,0.22562853]
[1761877056443,0.0116449,109450.0,109440.0,0.22562853]
[1761877056640,0.19437674,109450.0,109440.0,0.22562853]
[1761877056841,0.0116449,109450.0,109440.0,0.22562853]
[1761877057010,0.0116449,109450.0,109440.0,0.62312029]
[1761877057429,0.01163964,109450.0,109440.0,0.62312029]
[1761877057632,0.01163964,109450.0,109440.0,0.7129393]
[1761877057887,0.00963964,109450.0,109440.0,0.7129393]
[1761877058060,0.00963964,109450.0,109440.0,0.80375831]
[1761877058706,0.00863964,109450.0,109440.0,0.80275831]
[1761877059499,0.00863964,109450.0,109440.0,0.40526655]
[1761877059671,0.00863964,109450.0,109440.0,0.80475831]
[1761877060078,0.00863964,109450.0,109440.0,0.80875831]
[1761877061757,0.00908572,109450.0,109440.0,0.80875831]
[1761877061958,0.00908572,109450.0,109440.0,0.41126655]
[1761877062177,0.00908572,109450.0,109440.0,0.80875831]
[1761877062405,0.00059132,109450.0,109440.0,0.80875831]
[1761877062620,0.00908022,109450.0,109440.0,0.80875831]
[1761877062829,0.00908022,109450.0,109440.0,0.82176831]
[1761877063038,0.00908022,109450.0,109440.0,0.42427655]
[1761877063245,0.00908022,109450.0,109440.0,0.82176831]
[1761877063671,0.00908022,109450.0,109440.0,0.85795059]
[1761877064510,0.00907942,109450.0,109440.0,0.85795059]
[1761877064990,0.00907942,109450.0,109440.0,1.25544235]
[1761877065614,0.00907942,109450.0,109440.0,1.59544235]
[1761877065826,0.00059132,109450.0,109440.0,1.59544235]
[1761877066047,0.00059132,109450.0,109440.0,1.60544234]
[1761877066895,0.00059132,109450.0,109440.0,1.59944234]
[1761877067040,0.00059132,109450.0,109440.0,1.60644234]
[1761877068056,0.00059132,109450.0,109440.0,0.71163982]
[1761877068255,0.00059132,109450.0,109440.0,1.11313158]
[1761877068478,0.00059132,109450.0,109440.0,0.77313158]
[1761877068681,0.0090776,109450.0,109440.0,0.77313158]
[1761877069090,0.0090776,109450.0,109440.0,0.76213158]
[1761877069295,0.0090776,109450.0,109440.0,0.85795059]
[1761877069665,0.0090776,109450.0,109440.0,0.46045883]
[1761877069866,0.0090776,109450.0,109440.0,0.85795059]
[1761877070922,0.0090776,109450.0,109440.0,1.25544235]
[1761877071149,0.00059132,109450.0,109440.0,1.25544235]
[1761877071562,0.00059132,109450.0,109440.0,1.60544234]
[1761877072262,0.00059132,109450.0,109440.0,1.75114234]
[1761877073369,0.00059132,109450.0,109440.0,1.64963314]
[1761877073769,1e-08,109450.0,109440.0,1.50393314]
[1761877073974,1e-08,109450.0,109440.0,1.51393313]
[1761877074784,1e-08,109450.0,109440.0,1.50393314]
[1761877074984,1e-08,109450.0,109440.0,1.50993313]
[1761877075215,1e-08,109450.0,109440.0,1.50793313]
[1761877075394,1e-08,109450.0,109440.0,1.51993313]
[1761877076992,1e-08,109450.0,109440.0,1.61635313]
[1761877077135,1e-08,109450.0,109440.0,1.51993313]
[1761877078043,1e-08,109450.0,109440.0,1.66563313]
[1761877078288,1e-08,109450.0,109440.0,1.65563314]
[1761877078500,1e-08,109450.0,109440.0,1.66563313]
[1761877079282,1e-08,109450.0,109440.0,1.65563314]
[1761877079591,1e-08,109450.0,109440.0,1.66563313]
[1761877080903,1e-08,109450.0,109440.0,0.81645882]
[1761877081122,1e-08,109450.0,109440.0,0.34045754]
[1761877081123,0.00848832,109450.0,109440.0,0.34045754]
[1761877081942,0.00848832,109450.0,109440.0,0.33345754]
[1761877082146,0.00848832,109450.0,109440.0,0.33045754]
[1761877082559,0.00848832,109450.0,109440.0,0.33145754]
[1761877083801,0.00848832,109450.0,109440.0,0.35252251]
[1761877084211,0.00848832,109450.0,109440.0,0.33145754]
[1761877084428,0.00848832,109450.0,109440.0,0.06089]
[1761877084636,0.88469448,109450.0,109440.0,0.06089]
[1761877084849,0.90427494,109450.0,109440.0,0.06089]
[1761877085055,0.21080062,109450.0,109440.0,0.06089]
[1761877085238,0.19122016,109450.0,109440.0,0.05989]
[1761877085443,0.19122016,109450.0,109440.0,0.05789]
[1761877085679,0.19422016,109450.0,109440.0,0.05789]
[1761877086532,0.20218016,109450.0,109440.0,0.03078]
[1761877086921,0.22176062,109450.0,109440.0,0.03078]
[1761877087458,2.22176062,109450.0,109440.0,0.03078]
[1761877087715,2.21380062,109450.0,109440.0,0.05628]
[1761877087898,0.18274853,109440.0,109430.0,0.2212747]
[1761877088097,0.19123684,109440.0,109430.0,0.2212747]
[1761877088301,0.19123684,109440.0,109430.0,0.23904523]
[1761877088868,0.19123684,109440.0,109430.0,0.05628]
[1761877089075,0.19123684,109440.0,109430.0,0.23904523]
[1761877089275,0.19123684,109440.0,109430.0,0.05628]
[1761877089846,0.19123684,109440.0,109430.0,0.23904523]
[1761877090273,0.23210073,109440.0,109430.0,0.03078]
[1761877090479,0.23210073,109440.0,109420.0,0.22129194]
[1761877090681,0.0453722,109440.0,109430.0,0.01777]
[1761877090891,0.00848831,109440.0,109430.0,0.04327]
[1761877091095,0.19124358,109440.0,109430.0,0.22603523]
[1761877091536,0.19324358,109440.0,109430.0,0.04327]
[1761877091839,0.19424358,109440.0,109430.0,0.22603523]
[1761877092040,0.19424358,109440.0,109430.0,0.04327]
[1761877092670,0.19540358,109440.0,109420.0,0.19578933]
[1761877092844,0.19540358,109440.0,109420.0,0.22128933]
[1761877093051,0.23608795,109440.0,109430.0,0.01777]
[1761877093251,0.19540358,109440.0,109430.0,0.01777]
[1761877093460,0.19224358,109440.0,109430.0,0.22603523]
[1761877093807,0.01149505,109440.0,109430.0,0.22603523]
[1761877094009,0.01049505,109440.0,109430.0,0.22686572]
[1761877094435,0.001,109440.0,109430.0,0.22686572]
[1761877094640,0.18273292,109450.0,109440.0,0.18274853]
[1761877094848,0.19122229,109450.0,109440.0,0.19882853]
[1761877095071,0.19122229,109450.0,109440.0,0.22333853]
[1761877095354,0.18156329,109450.0,109440.0,0.22333853]
[1761877096193,0.18156329,109450.0,109440.0,0.04059]
[1761877096735,2.22088311,109450.0,109440.0,0.04059]
[1761877096916,2.22356311,109450.0,109440.0,0.01608]
[1761877097121,2.62203412,109450.0,109440.0,0.01608]
[1761877097986,0.18274853,109440.0,109430.0,0.02557049]
[1761877098186,2.93377889,109450.0,109440.0,0.01717]
[1761877098393,2.94158521,109450.0,109440.0,0.01717]
[1761877098584,2.94226521,109450.0,109440.0,0.01717]
[1761877098927,2.94126521,109450.0,109440.0,0.01717]
[1761877099581,3.02908422,109450.0,109440.0,0.01717]
[1761877100471,2.91264187,109450.0,109440.0,0.01717]
[1761877100699,2.91464187,109450.0,109440.0,0.01717]
[1761877101135,2.51649086,109450.0,109440.0,0.04191]
[1761877101335,2.91496187,109450.0,109440.0,0.04191]
[1761877101537,2.94242794,109450.0,109440.0,0.04191]
[1761877102865,2.94310794,109450.0,109440.0,0.01717]
[1761877103127,2.94242794,109450.0,109440.0,0.01717]
[1761877103350,0.03895239,109450.0,109440.0,0.24473491]
[1761877103567,0.003,109450.0,109440.0,0.22465853]
[1761877104419,0.01148864,109450.0,109440.0,0.22465853]
[1761877104849,0.19422048,109450.0,109440.0,0.22465853]
[1761877108034,0.01148864,109450.0,109440.0,0.22465853]
[1761877110776,0.01148864,109450.0,109440.0,0.23659853]
[1761877113992,0.01148864,109450.0,109440.0,0.31955886]
[1761877114212,0.01148864,109450.0,109440.0,0.23659853]
[1761877114430,0.01148864,109450.0,109440.0,0.63406954]
[1761877114654,0.00848864,109450.0,109440.0,0.63406954]
[1761877114856,0.18293896,109460.0,109450.0,0.18273184]
[1761877115061,0.19145836,109460.0,109450.0,0.23658184]
[1761877116018,0.19345836,109460.0,109450.0,0.23658184]
[1761877116445,0.19445836,109460.0,109450.0,0.23658184]
[1761877119513,0.0117424,109460.0,109450.0,0.23658184]
[1761877119728,0.0117424,109460.0,109450.0,0.63397711]
[1761877119944,0.0117424,109460.0,109450.0,0.23658184]
[1761877120601,0.85687394,109470.0,109460.0,0.01194]
[1761877120836,0.85687394,109470.0,109460.0,0.05385]
[1761877121277,0.85709691,109470.0,109460.0,0.05385]
[1761877121720,0.86009691,109470.0,109460.0,0.05385]
[1761877122417,0.86009691,109470.0,109460.0,0.23656514]
[1761877122643,0.05225,109470.0,109460.0,0.67708411]
[1761877122908,0.00522297,109470.0,109460.0,0.63396041]
[1761877123685,0.00022297,109470.0,109460.0,0.63396041]
[1761877124086,0.00122297,109470.0,109460.0,0.63396041]
[1761877125458,0.00022297,109470.0,109460.0,0.63396041]
[1761877125661,0.00022297,109470.0,109460.0,0.63496041]
[1761877126722,0.00022297,109470.0,109460.0,0.72477942]
[1761877126928,0.00022297,109470.0,109460.0,0.32738415]
[1761877127134,0.00022297,109470.0,109460.0,0.72477942]
[1761877127469,0.00022297,109470.0,109460.0,1.12217469]
[1761877127756,0.00022297,109470.0,109460.0,0.72477942]
[1761877128187,0.00022297,109470.0,109460.0,0.81459843]
[1761877128391,0.00022297,109470.0,109460.0,0.41720316]
[1761877128620,0.00022297,109470.0,109460.0,0.32738415]
[1761877128843,0.00022297,109470.0,109460.0,0.72477942]
[1761877129942,0.00022297,109470.0,109460.0,0.32738415]
[1761877130147,0.00022297,109470.0,109460.0,0.72477942]
[1761877130449,0.00022297,109470.0,109460.0,0.32738415]
[1761877131173,0.18292142,109470.0,109460.0,0.05485]
[1761877131372,0.65661663,109470.0,109460.0,0.05485]
[1761877132072,0.58031669,109470.0,109460.0,0.03011]
[1761877132397,0.5888273,109470.0,109460.0,0.03011]
[1761877132862,0.5888273,109470.0,109460.0,0.02911]
[1761877133210,0.5908273,109470.0,109460.0,0.02911]
[1761877133408,0.70026259,109470.0,109460.0,0.02911]
[1761877133639,0.30286732,109470.0,109460.0,0.05366]
[1761877133845,0.61044358,109470.0,109460.0,0.05366]
[1761877134253,0.18269845,109470.0,109460.0,0.05366]
[1761877134449,0.58009372,109470.0,109460.0,0.05366]
[1761877134654,0.18269845,109470.0,109460.0,0.05366]
[1761877134880,0.58009372,109470.0,109460.0,0.05366]
[1761877135658,2.58009372,109470.0,109460.0,0.05366]
[1761877136127,3.31748899,109470.0,109460.0,0.02911]
[1761877136334,2.18271514,109460.0,109450.0,0.03649]
[1761877136527,2.97750568,109460.0,109450.0,0.03649]
[1761877136703,2.97750568,109460.0,109450.0,0.05311]
[1761877136913,2.58011041,109460.0,109450.0,0.05311]
[1761877137322,2.66992942,109460.0,109450.0,0.05311]
[1761877137484,2.66992942,109460.0,109450.0,0.05411]
[1761877138164,2.39739527,109460.0,109450.0,0.23684184]
[1761877138362,0.18271514,109460.0,109450.0,0.23684184]
[1761877138566,0.58011041,109460.0,109450.0,0.05411]
[1761877138904,0.58011041,109460.0,109450.0,0.05311]
[1761877139389,0.58111041,109460.0,109450.0,0.05311]
[1761877140191,0.18371514,109460.0,109450.0,0.05311]
[1761877140356,0.58111041,109460.0,109450.0,0.05311]
[1761877140688,1.4981437,109460.0,109440.0,0.0008304]
[1761877140875,3.43535761,109450.0,109440.0,0.0008304]
[1761877141129,2.66645623,109450.0,109440.0,0.0008304]
[1761877141277,3.46124677,109450.0,109440.0,0.0008304]
[1761877141834,3.09132227,109450.0,109440.0,0.0008304]
[1761877142038,3.102317,109450.0,109440.0,0.0018304]
[1761877142259,3.46282838,109450.0,109440.0,0.0018304]
[1761877142663,3.46282838,109450.0,109440.0,0.0008304]
[1761877145087,4.08734338,109450.0,109440.0,1e-08]
[1761877145314,0.18281535,109400.0,109390.0,0.01287]
[1761877145454,2.97769429,109400.0,109390.0,0.01287]
[1761877145662,3.01457818,109400.0,109390.0,0.03082888]
[1761877146075,2.97769429,109400.0,109390.0,0.03082888]
[1761877148066,2.97769429,109400.0,109390.0,0.03182888]
[1761877149204,3.0675133,109400.0,109390.0,0.00233888]
[1761877150145,3.4075133,109400.0,109390.0,0.00233888]
[1761877150407,3.43552952,109400.0,109390.0,0.00233888]
[1761877150609,0.55091997,109400.0,109390.0,0.03182888]
[1761877150819,0.0020884,109400.0,109390.0,0.25749414]
[1761877151022,0.0020884,109400.0,109390.0,0.23821094]
[1761877151434,0.0050884,109400.0,109390.0,0.23821094]
[1761877151635,0.0030884,109400.0,109390.0,0.23821094]
[1761877151786,8.84e-05,109400.0,109390.0,0.23821094]
[1761877152110,8.84e-05,109400.0,109390.0,0.23921094]
[1761877152461,8.84e-05,109400.0,109390.0,0.24021094]
[1761877152666,8.84e-05,109400.0,109390.0,0.23921094]
[1761877152971,8.84e-05,109400.0,109390.0,0.24121094]
[1761877159421,8.84e-05,109400.0,109390.0,0.33102995]
[1761877161644,2.0,109420.0,109410.0,0.02837]
[1761877161847,0.18283288,109420.0,109410.0,0.21116864]
[1761877162053,0.18283288,109420.0,109410.0,0.23467864]
[1761877162269,0.18283288,109420.0,109410.0,0.05188]
[1761877162659,0.63489172,109420.0,109410.0,0.05188]
[1761877162865,0.72471073,109420.0,109410.0,0.05188]
[1761877163026,0.73384982,109420.0,109410.0,0.05188]
[1761877163499,0.73584982,109420.0,109410.0,0.05188]
[1761877163706,2.73584982,109420.0,109410.0,0.05188]
[1761877163879,2.64603081,109420.0,109410.0,0.05188]
[1761877166139,0.64603081,109420.0,109410.0,0.05188]
[1761877166337,0.64603081,109420.0,109410.0,0.23467864]
[1761877166544,0.00204839,109420.0,109410.0,0.23467864]
[1761877167150,4.839e-05,109420.0,109410.0,0.23557104]
[1761877167557,4.839e-05,109420.0,109410.0,0.27740949]
[1761877167768,4.839e-05,109420.0,109410.0,0.23557104]
[1761877168187,4.839e-05,109420.0,109410.0,0.23657104]
[1761877169180,4.839e-05,109420.0,109410.0,0.23557104]
[1761877169580,4.839e-05,109420.0,109410.0,0.23657104]
[1761877169783,4.839e-05,109420.0,109410.0,0.28050949]
[1761877170578,4.839e-05,109420.0,109410.0,0.23857104]
[1761877172332,4.839e-05,109420.0,109410.0,0.32839005]
[1761877172953,4.839e-05,109420.0,109410.0,0.81663117]
[1761877175265,4.839e-05,109420.0,109410.0,0.81563117]
[1761877175449,4.839e-05,109420.0,109410.0,1.49651193]
[1761877175684,4.839e-05,109420.0,109410.0,1.59533094]
[1761877176926,4.839e-05,109420.0,109410.0,0.80039134]
[1761877177133,4.839e-05,109420.0,109410.0,1.59533094]
[1761877179413,4.839e-05,109420.0,109410.0,1.59525856]
[1761877180430,4.839e-05,109420.0,109410.0,0.80039134]
[1761877180638,4.839e-05,109420.0,109410.0,0.71057233]
[1761877189209,4.839e-05,109420.0,109410.0,0.15159141]
[1761877189406,0.18283033,109420.0,109410.0,0.15159141]
[1761877189606,0.18283033,109420.0,109410.0,0.33439005]
[1761877189806,0.21939035,109420.0,109410.0,0.33439005]
[1761877190048,0.21939035,109420.0,109410.0,0.15159141]
[1761877190241,0.18283033,109420.0,109410.0,0.14559141]
[1761877190368,0.18283033,109420.0,109410.0,0.32839005]
[1761877190572,0.18283033,109420.0,109410.0,0.14759141]
[1761877190782,0.18283033,109420.0,109410.0,0.14459141]
[1761877191041,0.18283033,109420.0,109410.0,0.0183324]
[1761877191042,0.87706139,109420.0,109410.0,0.0183324]
[1761877191212,0.97538477,109420.0,109410.0,0.0193324]
[1761877191826,0.1913347,109420.0,109410.0,0.0173324]
[1761877192028,0.1913347,109420.0,109410.0,0.0400924]
[1761877192227,4.839e-05,109420.0,109410.0,0.31271005]
[1761877193674,4.839e-05,109420.0,109410.0,0.31471005]
[1761877194117,4.839e-05,109420.0,109410.0,0.13191141]
[1761877194331,0.18283033,109420.0,109410.0,0.31471005]
[1761877194541,0.2202407,109420.0,109410.0,0.0450924]
[1761877195453,0.22875032,109420.0,109410.0,0.0430924]
[1761877195782,0.22875032,109420.0,109410.0,0.0440924]
[1761877196399,0.19133995,109420.0,109410.0,0.0410924]
[1761877196595,0.19133995,109420.0,109410.0,0.22389104]
[1761877196866,0.18283033,109420.0,109410.0,0.22589104]
[1761877197671,0.18283033,109420.0,109410.0,0.0430924]
[1761877197859,0.19134148,109420.0,109410.0,0.0430924]
[1761877198216,0.28116049,109420.0,109410.0,0.0430924]
[1761877198633,0.19134148,109420.0,109410.0,0.0430924]
[1761877199285,0.88557254,109420.0,109410.0,0.0038924]
[1761877199477,0.90518107,109420.0,109410.0,0.0173324]
[1761877199792,0.90518107,109420.0,109410.0,0.0410924]
[1761877199997,0.21095001,109420.0,109410.0,0.0400924]
[1761877200210,0.30076902,109420.0,109410.0,0.0163324]
[1761877200423,2.99500008,109420.0,109410.0,0.0008924]
[1761877200625,2.99800008,109420.0,109410.0,0.0008924]
[1761877201048,3.42881909,109420.0,109410.0,0.0008924]
[1761877201502,3.42781909,109420.0,109410.0,0.0008924]
[1761877201711,3.42981909,109420.0,109410.0,0.0008924]
[1761877203766,2.73558803,109420.0,109410.0,0.0008924]
[1761877203980,2.03316807,109420.0,109410.0,0.22289104]
[1761877204199,2.18783033,109420.0,109410.0,0.22289104]